{"text_format":"3","workbook":"xlsx","n_sheets":1,"sheets":["Familjens månadsbudget"],"read":"whole","date_system":"1900"}

{"sheet":"Familjens månadsbudget","index":0,"n_rows":67,"n_cols":10,"rows_kept":67}
[null,"Familjens månadsbudget"]
[null,"Sammanfattningstabell","Summa\nBeräknad kostnad","Summa\nFaktisk kostnad","Summa\nSkillnad",null,"Beräknad månadsinkomst","Belopp"]
[null,null,{"$f":"Bostad[[#Totals],[Beräknad\nkostnad]]+Transport[[#Totals],[Beräknad\nkostnad]]+Försäkring[[#Totals],[Beräknad\nkostnad]]+Mat[[#Totals],[Beräknad\nkostnad]]+Barn[[#Totals],[Beräknad\nkostnad]]+Juridiskt[[#Totals],[Beräknad\nkostnad]]+Sparande[[#Totals],[Beräknad\nkostnad]]+Lån[[#Totals],[Beräknad\nkostnad]]+Nöjen[[#Totals],[Beräknad\nkostnad]]+Skatter[[#Totals],[Beräknad \nkostnad]]+Hygien[[#Totals],[Beräknad\nkostnad]]+Husdjur[[#Totals],[Beräknad\nkostnad]]+Presenter[[#Totals],[Beräknad\nkostnad]]","v":{"v":1203,"d":"1,203 kr"}},{"$f":"Bostad[[#Totals],[Faktisk\nkostnad]]+Transport[[#Totals],[Faktisk\nkostnad]]+Försäkring[[#Totals],[Faktisk\nkostnad]]+Mat[[#Totals],[Faktisk\nkostnad]]+Barn[[#Totals],[Faktisk\nkostnad]]+Juridiskt[[#Totals],[Faktisk\nkostnad]]+Sparande[[#Totals],[Faktisk\nkostnad]]+Lån[[#Totals],[Faktisk\nkostnad]]+Nöjen[[#Totals],[Faktisk\nkostnad]]+Skatter[[#Totals],[Faktisk \nkostnad]]+Hygien[[#Totals],[Faktisk\nkostnad]]+Husdjur[[#Totals],[Faktisk\nkostnad]]+Presenter[[#Totals],[Faktisk\nkostnad]]","v":{"v":1317,"d":"1,317 kr"}},{"$f":"Bostad[[#Totals],[Skillnad]]+Transport[[#Totals],[Skillnad]]+Försäkring[[#Totals],[Skillnad]]+Mat[[#Totals],[Skillnad]]+Barn[[#Totals],[Skillnad]]+Juridiskt[[#Totals],[Skillnad]]+Sparande[[#Totals],[Skillnad]]+Lån[[#Totals],[Skillnad]]+Nöjen[[#Totals],[Skillnad]]+Skatter[[#Totals],[Skillnad]]+Hygien[[#Totals],[Skillnad]]+Husdjur[[#Totals],[Skillnad]]+Presenter[[#Totals],[Skillnad]]","v":{"v":-114,"d":"-114 kr"}},null,"Inkomst 1",{"v":4000,"d":"4,000 kr"}]
[{"$nulls":6},"Inkomst 2",{"v":1200,"d":"1,200 kr"}]
[null,"Bostad","Beräknad\nkostnad","Faktisk\nkostnad","Skillnad",null,"Extrainkomst",{"v":300,"d":"300 kr"}]
[null,"Bostadslån eller hyra",{"v":1000,"d":"1,000 kr"},{"v":1000,"d":"1,000 kr"},{"$f":"Bostad[Beräknad\nkostnad]-Bostad[Faktisk\nkostnad]","v":{"v":0,"d":"0 kr"}},null,"Summa månadsinkomst",{"$f":"SUM(H3:H5)","v":{"v":5500,"d":"5,500 kr"}}]
[null,"Topplån eller hyra",{"v":0,"d":"0 kr"},{"v":0,"d":"0 kr"},{"$f":"Bostad[Beräknad\nkostnad]-Bostad[Faktisk\nkostnad]","v":{"v":0,"d":"0 kr"}}]
[null,"Telefon",{"v":62,"d":"62 kr"},{"v":100,"d":"100 kr"},{"$f":"Bostad[Beräknad\nkostnad]-Bostad[Faktisk\nkostnad]","v":{"v":-38,"d":"-38 kr"}},null,"Faktisk månadsinkomstkälla","Belopp"]
[null,"Elektricitet",{"v":44,"d":"44 kr"},{"v":125,"d":"125 kr"},{"$f":"Bostad[Beräknad\nkostnad]-Bostad[Faktisk\nkostnad]","v":{"v":-81,"d":"-81 kr"}},null,"Inkomst 1",{"v":4000,"d":"4,000 kr"}]
[null,"Gas",{"v":22,"d":"22 kr"},{"v":35,"d":"35 kr"},{"$f":"Bostad[Beräknad\nkostnad]-Bostad[Faktisk\nkostnad]","v":{"v":-13,"d":"-13 kr"}},null,"Inkomst 2",{"v":1200,"d":"1,200 kr"}]
[null,"VA-avgifter",{"v":8,"d":"8 kr"},{"v":8,"d":"8 kr"},{"$f":"Bostad[Beräknad\nkostnad]-Bostad[Faktisk\nkostnad]","v":{"v":0,"d":"0 kr"}},null,"Extrainkomst",{"v":300,"d":"300 kr"}]
[null,"Kabel-TV",{"v":34,"d":"34 kr"},{"v":39,"d":"39 kr"},{"$f":"Bostad[Beräknad\nkostnad]-Bostad[Faktisk\nkostnad]","v":{"v":-5,"d":"-5 kr"}},null,"Summa månadsinkomst",{"$f":"SUM(H9:H11)","v":{"v":5500,"d":"5,500 kr"}}]
[null,"Sophämtning",{"v":10,"d":"10 kr"},{"v":10,"d":"10 kr"},{"$f":"Bostad[Beräknad\nkostnad]-Bostad[Faktisk\nkostnad]","v":{"v":0,"d":"0 kr"}}]
[null,"Underhåll eller reparationer",{"v":23,"d":"23 kr"},{"v":0,"d":"0 kr"},{"$f":"Bostad[Beräknad\nkostnad]-Bostad[Faktisk\nkostnad]","v":{"v":23,"d":"23 kr"}},null,"Saldo","Belopp"]
[null,"Material",{"v":0,"d":"0 kr"},{"v":0,"d":"0 kr"},{"$f":"Bostad[Beräknad\nkostnad]-Bostad[Faktisk\nkostnad]","v":{"v":0,"d":"0 kr"}},null,"Beräknat saldo",{"$f":"SUM(H6-'Familjens månadsbudget'!$C$3:$C$3)","v":{"v":4297,"d":"4,297 kr"}}]
[null,"Övrigt",{"v":0,"d":"0 kr"},{"v":0,"d":"0 kr"},{"$f":"Bostad[Beräknad\nkostnad]-Bostad[Faktisk\nkostnad]","v":{"v":0,"d":"0 kr"}},null,"Verkligt saldo",{"$f":"SUM(H12-D3)","v":{"v":4183,"d":"4,183 kr"}}]
[null,"Summa",{"$f":"SUBTOTAL(109,Bostad[Beräknad\nkostnad])","v":{"v":1203,"d":"1,203 kr"}},{"$f":"SUBTOTAL(109,Bostad[Faktisk\nkostnad])","v":{"v":1317,"d":"1,317 kr"}},{"$f":"SUBTOTAL(109,Bostad[Skillnad])","v":{"v":-114,"d":"-114 kr"}},null,"Skillnad",{"$f":"SUM(H16-H15)","v":{"v":-114,"d":"-114 kr"}}]
[]
[null,"Transport","Beräknad\nkostnad","Faktisk\nkostnad","Skillnad",null,"Lån","Beräknad\nkostnad","Faktisk\nkostnad","Skillnad"]
[null,"Avbetalning fordon 1",null,null,{"$f":"Transport[Beräknad\nkostnad]-Transport[Faktisk\nkostnad]","v":{"v":0,"d":"0 kr"}},null,"Privat",null,null,{"$f":"Lån[Beräknad\nkostnad]-Lån[Faktisk\nkostnad]","v":{"v":0,"d":"0 kr"}}]
[null,"Avbetalning fordon 2",null,null,{"$f":"Transport[Beräknad\nkostnad]-Transport[Faktisk\nkostnad]","v":{"v":0,"d":"0 kr"}},null,"Student",null,null,{"$f":"Lån[Beräknad\nkostnad]-Lån[Faktisk\nkostnad]","v":{"v":0,"d":"0 kr"}}]
[null,"Buss/taxi",null,null,{"$f":"Transport[Beräknad\nkostnad]-Transport[Faktisk\nkostnad]","v":{"v":0,"d":"0 kr"}},null,"Kreditkort",null,null,{"$f":"Lån[Beräknad\nkostnad]-Lån[Faktisk\nkostnad]","v":{"v":0,"d":"0 kr"}}]
[null,"Försäkring",null,null,{"$f":"Transport[Beräknad\nkostnad]-Transport[Faktisk\nkostnad]","v":{"v":0,"d":"0 kr"}},null,"Kreditkort",null,null,{"$f":"Lån[Beräknad\nkostnad]-Lån[Faktisk\nkostnad]","v":{"v":0,"d":"0 kr"}}]
[null,"Licensavgift",null,null,{"$f":"Transport[Beräknad\nkostnad]-Transport[Faktisk\nkostnad]","v":{"v":0,"d":"0 kr"}},null,"Kreditkort",null,null,{"$f":"Lån[Beräknad\nkostnad]-Lån[Faktisk\nkostnad]","v":{"v":0,"d":"0 kr"}}]
[null,"Bränsle",null,null,{"$f":"Transport[Beräknad\nkostnad]-Transport[Faktisk\nkostnad]","v":{"v":0,"d":"0 kr"}},null,"Övrigt",null,null,{"$f":"Lån[Beräknad\nkostnad]-Lån[Faktisk\nkostnad]","v":{"v":0,"d":"0 kr"}}]
[null,"Underhåll",null,null,{"$f":"Transport[Beräknad\nkostnad]-Transport[Faktisk\nkostnad]","v":{"v":0,"d":"0 kr"}},null,"Summa",{"$f":"SUBTOTAL(109,Lån[Beräknad\nkostnad])","v":{"v":0,"d":"0 kr"}},{"$f":"SUBTOTAL(109,Lån[Faktisk\nkostnad])","v":{"v":0,"d":"0 kr"}},{"$f":"SUBTOTAL(109,Lån[Skillnad])","v":{"v":0,"d":"0 kr"}}]
[null,"Övrigt",null,null,{"$f":"Transport[Beräknad\nkostnad]-Transport[Faktisk\nkostnad]","v":{"v":0,"d":"0 kr"}}]
[null,"Summa",{"$f":"SUBTOTAL(109,Transport[Beräknad\nkostnad])","v":{"v":0,"d":"0 kr"}},{"$f":"SUBTOTAL(109,Transport[Faktisk\nkostnad])","v":{"v":0,"d":"0 kr"}},{"$f":"SUBTOTAL(109,Transport[Skillnad])","v":{"v":0,"d":"0 kr"}},null,"Nöjen","Beräknad\nkostnad","Faktisk\nkostnad","Skillnad"]
[{"$nulls":6},"Video/DVD",null,null,{"$f":"Nöjen[Beräknad\nkostnad]-Nöjen[Faktisk\nkostnad]","v":{"v":0,"d":"0 kr"}}]
[null,"Försäkring","Beräknad\nkostnad","Faktisk\nkostnad","Skillnad",null,"CD",null,null,{"$f":"Nöjen[Beräknad\nkostnad]-Nöjen[Faktisk\nkostnad]","v":{"v":0,"d":"0 kr"}}]
[null,"Hemförsäkring",null,null,{"$f":"Försäkring[Beräknad\nkostnad]-Försäkring[Faktisk\nkostnad]","v":{"v":0,"d":"0 kr"}},null,"Bio",null,null,{"$f":"Nöjen[Beräknad\nkostnad]-Nöjen[Faktisk\nkostnad]","v":{"v":0,"d":"0 kr"}}]
[null,"Sjukförsäkring",null,null,{"$f":"Försäkring[Beräknad\nkostnad]-Försäkring[Faktisk\nkostnad]","v":{"v":0,"d":"0 kr"}},null,"Konserter",null,null,{"$f":"Nöjen[Beräknad\nkostnad]-Nöjen[Faktisk\nkostnad]","v":{"v":0,"d":"0 kr"}}]
[null,"Livförsäkring",null,null,{"$f":"Försäkring[Beräknad\nkostnad]-Försäkring[Faktisk\nkostnad]","v":{"v":0,"d":"0 kr"}},null,"Sportevenemang",null,null,{"$f":"Nöjen[Beräknad\nkostnad]-Nöjen[Faktisk\nkostnad]","v":{"v":0,"d":"0 kr"}}]
[null,"Övrigt",null,null,{"$f":"Försäkring[Beräknad\nkostnad]-Försäkring[Faktisk\nkostnad]","v":{"v":0,"d":"0 kr"}},null,"Teater",null,null,{"$f":"Nöjen[Beräknad\nkostnad]-Nöjen[Faktisk\nkostnad]","v":{"v":0,"d":"0 kr"}}]
[null,"Summa",{"$f":"SUBTOTAL(109,Försäkring[Beräknad\nkostnad])","v":{"v":0,"d":"0 kr"}},{"$f":"SUBTOTAL(109,Försäkring[Faktisk\nkostnad])","v":{"v":0,"d":"0 kr"}},{"$f":"SUBTOTAL(109,Försäkring[Skillnad])","v":{"v":0,"d":"0 kr"}},null,"Övrigt",null,null,{"$f":"Nöjen[Beräknad\nkostnad]-Nöjen[Faktisk\nkostnad]","v":{"v":0,"d":"0 kr"}}]
[{"$nulls":6},"Summa",{"$f":"SUBTOTAL(109,Nöjen[Beräknad\nkostnad])","v":{"v":0,"d":"0 kr"}},{"$f":"SUBTOTAL(109,Nöjen[Faktisk\nkostnad])","v":{"v":0,"d":"0 kr"}},{"$f":"SUBTOTAL(109,Nöjen[Skillnad])","v":{"v":0,"d":"0 kr"}}]
[null,"Mat","Beräknad\nkostnad","Faktisk\nkostnad","Skillnad"]
[null,"Matvaror",null,null,{"$f":"Mat[Beräknad\nkostnad]-Mat[Faktisk\nkostnad]","v":{"v":0,"d":"0 kr"}},null,"Skatter","Beräknad \nkostnad","Faktisk \nkostnad","Skillnad"]
[null,"Restaurangbesök",null,null,{"$f":"Mat[Beräknad\nkostnad]-Mat[Faktisk\nkostnad]","v":{"v":0,"d":"0 kr"}},null,"Statlig",null,null,{"$f":"Skatter[Beräknad \nkostnad]-Skatter[Faktisk \nkostnad]","v":{"v":0,"d":"0 kr"}}]
[null,"Övrigt",null,null,{"$f":"Mat[Beräknad\nkostnad]-Mat[Faktisk\nkostnad]","v":{"v":0,"d":"0 kr"}},null,"Landsting",null,null,{"$f":"Skatter[Beräknad \nkostnad]-Skatter[Faktisk \nkostnad]","v":{"v":0,"d":"0 kr"}}]
[null,"Summa",{"$f":"SUBTOTAL(109,Mat[Beräknad\nkostnad])","v":{"v":0,"d":"0 kr"}},{"$f":"SUBTOTAL(109,Mat[Faktisk\nkostnad])","v":{"v":0,"d":"0 kr"}},{"$f":"SUBTOTAL(109,Mat[Skillnad])","v":{"v":0,"d":"0 kr"}},null,"Kommunal",null,null,{"$f":"Skatter[Beräknad \nkostnad]-Skatter[Faktisk \nkostnad]","v":{"v":0,"d":"0 kr"}}]
[{"$nulls":6},"Övrigt",null,null,{"$f":"Skatter[Beräknad \nkostnad]-Skatter[Faktisk \nkostnad]","v":{"v":0,"d":"0 kr"}}]
[null,"Barn","Beräknad\nkostnad","Faktisk\nkostnad","Skillnad",null,"Summa",{"$f":"SUBTOTAL(109,Skatter[Beräknad \nkostnad])","v":{"v":0,"d":"0 kr"}},{"$f":"SUBTOTAL(109,Skatter[Faktisk \nkostnad])","v":{"v":0,"d":"0 kr"}},{"$f":"SUBTOTAL(109,Skatter[Skillnad])","v":{"v":0,"d":"0 kr"}}]
[null,"Medicin",null,null,{"$f":"Barn[Beräknad\nkostnad]-Barn[Faktisk\nkostnad]","v":{"v":0,"d":"0 kr"}}]
[null,"Kläder",null,null,{"$f":"Barn[Beräknad\nkostnad]-Barn[Faktisk\nkostnad]","v":{"v":0,"d":"0 kr"}},null,"Hygien","Beräknad\nkostnad","Faktisk\nkostnad","Skillnad"]
[null,"Skolavgifter",null,null,{"$f":"Barn[Beräknad\nkostnad]-Barn[Faktisk\nkostnad]","v":{"v":0,"d":"0 kr"}},null,"Medicin",null,null,{"$f":"Hygien[Beräknad\nkostnad]-Hygien[Faktisk\nkostnad]","v":{"v":0,"d":"0 kr"}}]
[null,"Skolmaterial",null,null,{"$f":"Barn[Beräknad\nkostnad]-Barn[Faktisk\nkostnad]","v":{"v":0,"d":"0 kr"}},null,"Hår/naglar",null,null,{"$f":"Hygien[Beräknad\nkostnad]-Hygien[Faktisk\nkostnad]","v":{"v":0,"d":"0 kr"}}]
[null,"Medlemsavgifter",null,null,{"$f":"Barn[Beräknad\nkostnad]-Barn[Faktisk\nkostnad]","v":{"v":0,"d":"0 kr"}},null,"Kläder",null,null,{"$f":"Hygien[Beräknad\nkostnad]-Hygien[Faktisk\nkostnad]","v":{"v":0,"d":"0 kr"}}]
[null,"Lunchpengar",null,null,{"$f":"Barn[Beräknad\nkostnad]-Barn[Faktisk\nkostnad]","v":{"v":0,"d":"0 kr"}},null,"Kemtvätt",null,null,{"$f":"Hygien[Beräknad\nkostnad]-Hygien[Faktisk\nkostnad]","v":{"v":0,"d":"0 kr"}}]
[null,"Barnomsorg",null,null,{"$f":"Barn[Beräknad\nkostnad]-Barn[Faktisk\nkostnad]","v":{"v":0,"d":"0 kr"}},null,"Gym",null,null,{"$f":"Hygien[Beräknad\nkostnad]-Hygien[Faktisk\nkostnad]","v":{"v":0,"d":"0 kr"}}]
[null,"Leksaker/spel",null,null,{"$f":"Barn[Beräknad\nkostnad]-Barn[Faktisk\nkostnad]","v":{"v":0,"d":"0 kr"}},null,"Medlemsavgifter",null,null,{"$f":"Hygien[Beräknad\nkostnad]-Hygien[Faktisk\nkostnad]","v":{"v":0,"d":"0 kr"}}]
[null,"Övrigt",null,null,{"$f":"Barn[Beräknad\nkostnad]-Barn[Faktisk\nkostnad]","v":{"v":0,"d":"0 kr"}},null,"Övrigt",null,null,{"$f":"Hygien[Beräknad\nkostnad]-Hygien[Faktisk\nkostnad]","v":{"v":0,"d":"0 kr"}}]
[null,"Summa",{"$f":"SUBTOTAL(109,Barn[Beräknad\nkostnad])","v":{"v":0,"d":"0 kr"}},{"$f":"SUBTOTAL(109,Barn[Faktisk\nkostnad])","v":{"v":0,"d":"0 kr"}},{"$f":"SUBTOTAL(109,Barn[Skillnad])","v":{"v":0,"d":"0 kr"}},null,"Summa",{"$f":"SUBTOTAL(109,Hygien[Beräknad\nkostnad])","v":{"v":0,"d":"0 kr"}},{"$f":"SUBTOTAL(109,Hygien[Faktisk\nkostnad])","v":{"v":0,"d":"0 kr"}},{"$f":"SUBTOTAL(109,Hygien[Skillnad])","v":{"v":0,"d":"0 kr"}}]
[]
[null,"Juridiskt","Beräknad\nkostnad","Faktisk\nkostnad","Skillnad",null,"Husdjur","Beräknad\nkostnad","Faktisk\nkostnad","Skillnad"]
[null,"Advokat",null,null,{"$f":"Juridiskt[Beräknad\nkostnad]-Juridiskt[Faktisk\nkostnad]","v":{"v":0,"d":"0 kr"}},null,"Mat",null,null,{"$f":"Husdjur[Beräknad\nkostnad]-Husdjur[Faktisk\nkostnad]","v":{"v":0,"d":"0 kr"}}]
[null,"Underhåll",null,null,{"$f":"Juridiskt[Beräknad\nkostnad]-Juridiskt[Faktisk\nkostnad]","v":{"v":0,"d":"0 kr"}},null,"Medicin",null,null,{"$f":"Husdjur[Beräknad\nkostnad]-Husdjur[Faktisk\nkostnad]","v":{"v":0,"d":"0 kr"}}]
[null,"Betalningar",null,null,{"$f":"Juridiskt[Beräknad\nkostnad]-Juridiskt[Faktisk\nkostnad]","v":{"v":0,"d":"0 kr"}},null,"Omvårdnad",null,null,{"$f":"Husdjur[Beräknad\nkostnad]-Husdjur[Faktisk\nkostnad]","v":{"v":0,"d":"0 kr"}}]
[null,"Övrigt",null,null,{"$f":"Juridiskt[Beräknad\nkostnad]-Juridiskt[Faktisk\nkostnad]","v":{"v":0,"d":"0 kr"}},null,"Leksaker",null,null,{"$f":"Husdjur[Beräknad\nkostnad]-Husdjur[Faktisk\nkostnad]","v":{"v":0,"d":"0 kr"}}]
[null,"Summa",{"$f":"SUBTOTAL(109,Juridiskt[Beräknad\nkostnad])","v":{"v":0,"d":"0 kr"}},{"$f":"SUBTOTAL(109,Juridiskt[Faktisk\nkostnad])","v":{"v":0,"d":"0 kr"}},{"$f":"SUBTOTAL(109,Juridiskt[Skillnad])","v":{"v":0,"d":"0 kr"}},null,"Övrigt",null,null,{"$f":"Husdjur[Beräknad\nkostnad]-Husdjur[Faktisk\nkostnad]","v":{"v":0,"d":"0 kr"}}]
[{"$nulls":6},"Summa",{"$f":"SUBTOTAL(109,Husdjur[Beräknad\nkostnad])","v":{"v":0,"d":"0 kr"}},{"$f":"SUBTOTAL(109,Husdjur[Faktisk\nkostnad])","v":{"v":0,"d":"0 kr"}},{"$f":"SUBTOTAL(109,Husdjur[Skillnad])","v":{"v":0,"d":"0 kr"}}]
[null,"Sparande/investeringar","Beräknad\nkostnad","Faktisk\nkostnad","Skillnad"]
[null,"Pensionssparande",null,null,{"$f":"Sparande[Beräknad\nkostnad]-Sparande[Faktisk\nkostnad]","v":{"v":0,"d":"0 kr"}},null,"Gåvor och donationer","Beräknad\nkostnad","Faktisk\nkostnad","Skillnad"]
[null,"Investeringskonto",null,null,{"$f":"Sparande[Beräknad\nkostnad]-Sparande[Faktisk\nkostnad]","v":{"v":0,"d":"0 kr"}},null,"Välgörenhet 1",null,null,{"$f":"Presenter[Beräknad\nkostnad]-Presenter[Faktisk\nkostnad]","v":{"v":0,"d":"0 kr"}}]
[null,"Universitet",null,null,{"$f":"Sparande[Beräknad\nkostnad]-Sparande[Faktisk\nkostnad]","v":{"v":0,"d":"0 kr"}},null,"Välgörenhet 2",null,null,{"$f":"Presenter[Beräknad\nkostnad]-Presenter[Faktisk\nkostnad]","v":{"v":0,"d":"0 kr"}}]
[null,"Övrigt",null,null,{"$f":"Sparande[Beräknad\nkostnad]-Sparande[Faktisk\nkostnad]","v":{"v":0,"d":"0 kr"}},null,"Välgörenhet 3",null,null,{"$f":"Presenter[Beräknad\nkostnad]-Presenter[Faktisk\nkostnad]","v":{"v":0,"d":"0 kr"}}]
[null,"Summa",{"$f":"SUBTOTAL(109,Sparande[Beräknad\nkostnad])","v":{"v":0,"d":"0 kr"}},{"$f":"SUBTOTAL(109,Sparande[Faktisk\nkostnad])","v":{"v":0,"d":"0 kr"}},{"$f":"SUBTOTAL(109,Sparande[Skillnad])","v":{"v":0,"d":"0 kr"}},null,"Summa",{"$f":"SUBTOTAL(109,Presenter[Beräknad\nkostnad])","v":{"v":0,"d":"0 kr"}},{"$f":"SUBTOTAL(109,Presenter[Faktisk\nkostnad])","v":{"v":0,"d":"0 kr"}},{"$f":"SUBTOTAL(109,Presenter[Skillnad])","v":{"v":0,"d":"0 kr"}}]